fUSD/lending_fUSD_20240613
["ID","MTS","AMOUNT","RATE_DAILY","PERIOD"]
[329375580,1718291511177,-1000.0,0.000405,120]
[329375581,1718291511352,-1000.0,0.000405,120]
[329375582,1718291511579,-676.48,0.000405,120]
[329375583,1718291511694,-150.0,0.00040533,120]
[329375584,1718291511809,-1433.58388,0.00040688,30]
[329375585,1718291511943,-1000.0,0.000407,120]
[329375586,1718291512120,-1000.0,0.000407,120]
[329375587,1718291512311,-1000.0,0.000407,120]
[329375588,1718291512426,-1000.0,0.000407,120]
[329375589,1718291512533,-1123.38,0.000407,120]
[329375590,1718291512705,-1003.42,0.000407,120]
[329375591,1718291512907,-3168.0,0.000407,81]
[329375592,1718291513148,-2579.2721,0.00040798,50]
[329375593,1718291513324,-2851.52710211,0.000408,30]
[329375594,1718291513446,-892.0,0.000408,30]
[329375595,1718291513610,-1839.64663857,0.000408,60]
[329375596,1718291513728,-851.3437,0.000408,45]
[329375597,1718291513872,-150.0,0.00040843,120]
[329375598,1718291514032,-2578.0,0.00040898,52]
[329375599,1718291514164,-150.0,0.00040906,120]
[329375600,1718291514281,-824.96916805,0.00040999,120]
[329375601,1718291514487,-50000.0,0.00041,31]
[329375602,1718291514712,-36809.0,0.00041,30]
[329375603,1718291514962,-2445.93785264,0.00041,30]
[329375604,1718291515094,-670.2812574,0.00041,60]
[329375605,1718291515367,-1026.0,0.00041,90]
[329375606,1718291515533,-1028.00863765,0.00041,30]
[329375607,1718291515658,-78702.1120411,0.00041,40]
[329375608,1718291515792,-2000.0,0.00041,30]
[329375609,1718291515922,-593.1207437,0.00041,120]
[329375610,1718291516102,-1544.0,0.00041,120]
[329375611,1718291516270,-2117.0,0.00041,120]
[329375612,1718291516426,-2000.0,0.00041,120]
[329375613,1718291516649,-562.8612051,0.00041,120]
[329375614,1718291516803,-500.0,0.00041,120]
[329375615,1718291516970,-538.0,0.00041,120]
[329375616,1718291517142,-330.29959023,0.00041,120]
[329375617,1718291517288,-500.0,0.00041,120]
[329375618,1718291517453,-91025.24346396,0.00041,60]
[329375619,1718291606895,369.594,0.00031524,30]
[329375620,1718291623031,158.963862,0.00031524,30]
[329375621,1718291752629,611.0,0.00031524,30]
[329375622,1718291753036,1916.0,0.00031524,30]
[329375623,1718291866849,190.0,0.00031524,30]
[329375624,1718291867404,190.0,0.00031524,30]
[329375625,1718291870568,500.0,0.00031524,30]
[329375626,1718292022534,206.691999,0.00031524,120]
[329375627,1718292136067,1000.0,0.00031629,30]
[329375628,1718292142442,1000.0,0.00031629,30]
[329375629,1718292146382,150.0,0.00031629,30]
[329375633,1718292348754,611.0,0.00031629,30]
[329375642,1718292467341,190.0,0.00031629,30]
[329375645,1718292634441,-155.0,0.00013468,2]
[329375646,1718292634480,-317.02476131,0.00013469,2]
[329375648,1718292634509,-155.0,0.0001347,4]
[329375649,1718292634558,-498.54828562,0.0001347,2]
[329375650,1718292634571,-254.68592052,0.0001347,2]
[329375651,1718292634585,-300.37034445,0.0001347,2]
[329375652,1718292634602,-707.59213816,0.00013799,2]
[329375653,1718292634624,-300.0,0.00013899,2]
[329375654,1718292634660,-300.05767079,0.000139,2]
[329375655,1718292634673,-155.76501156,0.000139,2]
[329375656,1718292634685,-746.74982574,0.000139,2]
[329375657,1718292634722,-503.32943277,0.000139,2]
[329375658,1718292634765,-1528.35103245,0.000139,2]
[329375659,1718292634781,-4025.08342305,0.000139,2]
[329375660,1718292634820,-161.05,0.00016334,2]
[329375661,1718292634871,-981.86,0.00017534,2]
[329375662,1718292634892,-299.99,0.00017534,4]
[329375663,1718292634920,-437.41915973,0.000185,2]
[329375664,1718292634938,-426.76,0.00018609,2]
[329375665,1718292634964,-226.76270483,0.000201,2]
[329375666,1718292634974,-23900.0,0.00020127,2]
[329375667,1718292634989,-250.0,0.00020333,2]
[329375668,1718292635005,-283.26,0.00020399,2]
[329375669,1718292635016,-200.0,0.0002042,2]
[329375670,1718292635027,-150.0,0.00020482,2]
[329375671,1718292635060,-254.9,0.00020527,2]
[329375672,1718292635075,-500.0,0.00020574,2]
[329375673,1718292635120,-1357.37,0.00020584,2]
[329375674,1718292635145,-510.62,0.000206,2]
[329375675,1718292635160,-446.94,0.00020602,2]
[329375676,1718292635172,-426.76,0.00020873,2]
[329375677,1718292635187,-250.0,0.00021048,2]
[329375678,1718292635212,-157.09,0.00021146,2]
[329375679,1718292635256,-157.09,0.00021268,2]
[329375680,1718292635292,-157.09,0.00021391,2]
[329375681,1718292635316,-283.26,0.00021419,2]
[329375682,1718292635377,-157.09,0.00021513,2]
[329375683,1718292635408,-157.09,0.00021636,2]
[329375684,1718292635420,-200.0,0.00021747,2]
[329375685,1718292635452,-157.09,0.00021758,2]
[329375686,1718292635477,-232.9223,0.00021761,2]
[329375687,1718292635489,-11950.52,0.00021861,2]
[329375688,1718292635532,-157.09,0.00021881,2]
[329375689,1718292635576,-290.66,0.00021918,2]
[329375690,1718292635587,-250.0,0.00021918,2]
[329375691,1718292635602,-157.09,0.00022003,2]
[329375692,1718292635636,-157.09,0.00022125,2]
[329375693,1718292635650,-2279.292,0.00022234,2]
[329375694,1718292635663,-1246.082,0.00022234,2]
[329375695,1718292635701,-266.598,0.00022234,2]
[329375696,1718292635734,-1269.0,0.00022234,2]
[329375697,1718292635746,-1195.0,0.00022234,2]
[329375698,1718292635773,-615.0,0.00022234,2]
[329375699,1718292635786,-157.09,0.00022248,2]
[329375700,1718292635813,-283.26,0.00022439,2]
[329375701,1718292635845,-172.84,0.00022598,2]
[329375702,1718292635855,-426.76,0.00023137,2]
[329375703,1718292635911,-540.0,0.000233,2]
[329375704,1718292635928,-1357.37,0.00023324,2]
[329375705,1718292635952,-167.28,0.00023331,2]
[329375706,1718292635983,-1000.0,0.00023433,2]
[329375707,1718292635997,-283.26,0.00023459,2]
[329375708,1718292636021,-4175.627,0.00024009,2]
[329375709,1718292636058,-7111.1902,0.00024009,2]
[329375710,1718292636070,-6609.0522,0.00024009,2]
[329375711,1718292636136,-209.02,0.00024108,2]
[329375712,1718292636176,-266.46747593,0.00024109,2]
[329375713,1718292636234,-500.0,0.00024109,2]
[329375714,1718292636264,-500.0,0.00024109,2]
[329375715,1718292636277,-250.0,0.00024109,2]
[329375716,1718292636297,-496.1581829,0.00024109,2]
[329375717,1718292636328,-535.84,0.00024109,2]
[329375718,1718292636339,-500.0,0.00024109,2]
[329375719,1718292636353,-500.0,0.00024109,2]
[329375720,1718292636365,-630.26,0.00024109,2]
[329375721,1718292636379,-500.0,0.00024109,2]
[329375722,1718292636404,-502.43308412,0.00024109,2]
[329375723,1718292636415,-500.0,0.00024109,2]
[329375724,1718292636438,-608.98,0.00024109,2]
[329375725,1718292636449,-555.23,0.00024109,2]
[329375726,1718292636472,-516.44773508,0.00024109,2]
[329375727,1718292636489,-531.74956651,0.00024109,2]
[329375728,1718292636511,-500.0,0.00024109,2]
[329375729,1718292636535,-500.0,0.00024109,2]
[329375730,1718292636563,-500.0,0.00024109,2]
[329375731,1718292636602,-510.14751305,0.00024109,2]
[329375732,1718292636615,-425.83161903,0.00024109,2]
[329375733,1718292636639,-500.0,0.00024109,2]
[329375734,1718292636672,-500.0,0.00024109,2]
[329375735,1718292636682,-500.0,0.00024109,2]
[329375736,1718292636709,-500.0,0.00024109,2]
[329375737,1718292636741,-500.0,0.00024109,2]
[329375738,1718292636762,-500.0,0.00024109,2]
[329375739,1718292636774,-500.0,0.00024109,2]
[329375740,1718292636802,-500.0,0.00024109,2]
[329375741,1718292636828,-500.0,0.00024109,2]
[329375742,1718292636865,-500.0,0.00024109,2]
[329375743,1718292636901,-500.0,0.00024109,2]
[329375744,1718292636918,-500.0,0.00024109,2]
[329375745,1718292636932,-500.0,0.00024109,2]
[329375746,1718292636952,-500.0,0.00024109,2]
[329375747,1718292636966,-500.0,0.00024109,2]
[329375748,1718292636989,-500.0,0.00024109,2]
[329375749,1718292637004,-500.0,0.00024109,2]
[329375750,1718292637031,-500.0,0.00024109,2]
[329375751,1718292637054,-500.0,0.00024109,2]
[329375752,1718292637070,-500.0,0.00024109,2]
[329375753,1718292637139,-500.0,0.00024109,2]
[329375754,1718292637151,-524.70872914,0.00024109,2]
[329375755,1718292637178,-500.0,0.00024109,2]
[329375756,1718292637194,-520.62104436,0.00024109,2]
[329375757,1718292637219,-500.0,0.00024109,2]
[329375758,1718292637248,-500.0,0.00024109,2]
[329375759,1718292637281,-500.0,0.00024109,2]
[329375760,1718292637300,-500.0,0.00024109,2]
[329375761,1718292637311,-500.0,0.00024109,2]
[329375762,1718292637364,-500.0,0.00024109,2]
[329375763,1718292637380,-500.0,0.00024109,2]
[329375764,1718292637392,-500.0,0.00024109,2]
[329375765,1718292637409,-604.21,0.00024109,2]
[329375766,1718292637432,-500.0,0.00024109,2]
[329375767,1718292637456,-500.0,0.00024109,2]
[329375768,1718292637467,-500.0,0.00024109,2]
[329375769,1718292637478,-500.0,0.00024109,2]
[329375770,1718292637496,-571.61861516,0.00024109,2]
[329375771,1718292637517,-500.0,0.00024109,2]
[329375772,1718292637528,-500.0,0.00024109,2]
[329375773,1718292637540,-500.0,0.00024109,2]
[329375774,1718292637569,-500.0,0.00024109,2]
[329375775,1718292637584,-500.0,0.00024109,2]
[329375776,1718292637628,-500.0,0.00024109,2]
[329375777,1718292637642,-500.0,0.00024109,2]
[329375778,1718292637679,-509.94650705,0.00024109,2]
[329375779,1718292637690,-500.0,0.00024109,2]
[329375780,1718292637701,-500.0,0.00024109,2]
[329375781,1718292637746,-500.0,0.00024109,2]
[329375782,1718292637758,-500.0,0.00024109,2]
[329375783,1718292637782,-500.0,0.00024109,2]
[329375784,1718292637817,-500.0,0.00024109,2]
[329375785,1718292637849,-500.0,0.00024109,2]
[329375786,1718292637876,-500.0,0.00024109,2]
[329375787,1718292637892,-500.0,0.00024109,2]
[329375788,1718292637930,-502.73,0.00024109,2]
[329375789,1718292637966,-500.0,0.00024109,2]
[329375790,1718292637979,-500.0,0.00024109,2]
[329375791,1718292637992,-500.0,0.00024109,2]
[329375792,1718292638003,-500.0,0.00024109,2]
[329375793,1718292638021,-500.0,0.00024109,2]
[329375794,1718292638034,-500.0,0.00024109,2]
[329375795,1718292638045,-500.0,0.00024109,2]
[329375796,1718292638057,-539.05,0.00024109,2]
[329375797,1718292638067,-500.0,0.00024109,2]
[329375798,1718292638079,-500.0,0.00024109,2]
[329375799,1718292638128,-500.0,0.00024109,2]
[329375800,1718292638154,-500.0,0.00024109,2]
[329375801,1718292638206,-500.0,0.00024109,2]
[329375802,1718292638219,-500.0,0.00024109,2]
[329375803,1718292638241,-500.0,0.00024109,2]
[329375804,1718292638269,-500.0,0.00024109,2]
[329375805,1718292638297,-500.0,0.00024109,2]
[329375806,1718292638326,-500.0,0.00024109,2]
[329375807,1718292638373,-500.0,0.00024109,2]
[329375808,1718292638389,-500.0,0.00024109,2]
[329375809,1718292638409,-500.0,0.00024109,2]
[329375810,1718292638437,-500.0,0.00024109,2]
[329375811,1718292638450,-500.0,0.00024109,2]
[329375812,1718292638465,-500.0,0.00024109,2]
[329375813,1718292638480,-500.0,0.00024109,2]
[329375814,1718292638501,-155.0,0.00024109,2]
[329375815,1718292638542,-500.0,0.00024109,2]
[329375816,1718292638558,-500.0,0.00024109,2]
[329375817,1718292638584,-500.0,0.00024109,2]
[329375818,1718292638597,-500.0,0.00024109,2]
[329375819,1718292638650,-631.75,0.00024109,2]
[329375820,1718292638661,-500.0,0.00024109,2]
[329375821,1718292638683,-500.0,0.00024109,2]
[329375822,1718292638699,-500.0,0.00024109,2]
[329375823,1718292638720,-500.0,0.00024109,2]
[329375824,1718292638736,-500.0,0.00024109,2]
[329375825,1718292638769,-500.0,0.00024109,2]
[329375826,1718292638798,-500.0,0.00024109,2]
[329375827,1718292638829,-526.94,0.00024109,2]
[329375828,1718292638841,-500.0,0.00024109,2]
[329375829,1718292638851,-500.0,0.00024109,2]
[329375830,1718292638863,-500.0,0.00024109,2]
[329375831,1718292638879,-500.0,0.00024109,2]
[329375832,1718292638896,-500.0,0.00024109,2]
[329375833,1718292638932,-500.0,0.00024109,2]
[329375834,1718292638949,-502.80828016,0.00024109,2]
[329375835,1718292638962,-500.0,0.00024109,2]
[329375836,1718292638973,-500.0,0.00024109,2]
[329375837,1718292638983,-500.0,0.00024109,2]
[329375838,1718292638995,-500.0,0.00024109,2]
[329375839,1718292639019,-500.0,0.00024109,2]
[329375840,1718292639035,-500.0,0.00024109,2]
[329375841,1718292639047,-500.0,0.00024109,2]
[329375842,1718292639132,-500.0,0.00024109,2]
[329375843,1718292639148,-593.19,0.00024109,2]
[329375844,1718292639184,-500.0,0.00024109,2]
[329375845,1718292639203,-478.87062517,0.00024109,2]
[329375846,1718292639227,-500.0,0.00024109,2]
[329375847,1718292639244,-500.0,0.00024109,2]
[329375848,1718292639258,-500.0,0.00024109,2]
[329375849,1718292639278,-500.0,0.00024109,2]
[329375850,1718292639298,-500.0,0.00024109,2]
[329375851,1718292639311,-500.0,0.00024109,2]
[329375852,1718292639347,-500.0,0.00024109,2]
[329375853,1718292639358,-500.0,0.00024109,2]
[329375854,1718292639369,-500.0,0.00024109,2]
[329375855,1718292639383,-500.0,0.00024109,2]
[329375856,1718292639395,-500.0,0.00024109,2]
[329375857,1718292639414,-500.0,0.00024109,2]
[329375858,1718292639424,-500.0,0.00024109,2]
[329375859,1718292639435,-500.0,0.00024109,2]
[329375860,1718292639446,-500.0,0.00024109,2]
[329375861,1718292639487,-500.0,0.00024109,2]
[329375862,1718292639513,-500.0,0.00024109,2]
[329375863,1718292639523,-500.0,0.00024109,2]
[329375864,1718292639570,-500.0,0.00024109,2]
[329375865,1718292639600,-500.0,0.00024109,2]
[329375866,1718292639613,-500.0,0.00024109,2]
[329375867,1718292639629,-500.0,0.00024109,2]
[329375868,1718292639688,-500.0,0.00024109,2]
[329375869,1718292639700,-500.0,0.00024109,2]
[329375870,1718292639719,-500.0,0.00024109,2]
[329375871,1718292639729,-500.0,0.00024109,2]
[329375872,1718292639748,-500.0,0.00024109,2]
[329375873,1718292639798,-500.0,0.00024109,2]
[329375874,1718292639837,-254.32436265,0.00024109,2]
[329375875,1718292639867,-500.0,0.00024109,2]
[329375876,1718292639882,-500.0,0.00024109,2]
[329375877,1718292639894,-500.0,0.00024109,2]
[329375878,1718292639906,-539.7,0.00024109,2]
[329375879,1718292639929,-500.0,0.00024109,2]
[329375880,1718292639955,-500.0,0.00024109,2]
[329375881,1718292639980,-500.0,0.00024109,2]
[329375887,1718292640034,-500.0,0.00024109,2]
[329375890,1718292640058,-500.0,0.00024109,2]
[329375892,1718292640095,-500.0,0.00024109,2]
[329375893,1718292640120,-500.0,0.00024109,2]
[329375894,1718292640155,-500.0,0.00024109,2]
[329375895,1718292640168,-500.0,0.00024109,2]
[329375896,1718292640188,-500.0,0.00024109,2]
[329375897,1718292640257,-500.0,0.00024109,2]
[329375898,1718292640279,-500.0,0.00024109,2]
[329375899,1718292640324,-500.0,0.00024109,2]
[329375900,1718292640336,-500.0,0.00024109,2]
[329375901,1718292640365,-500.0,0.00024109,2]
[329375902,1718292640400,-261.99850236,0.00024109,2]
[329375903,1718292640428,-500.0,0.00024109,2]
[329375904,1718292640456,-500.0,0.00024109,2]
[329375905,1718292640478,-500.0,0.00024109,2]
[329375906,1718292640498,-500.0,0.00024109,2]
[329375907,1718292640557,-500.0,0.00024109,2]
[329375908,1718292640584,-507.65,0.00024109,2]
[329375909,1718292640600,-500.0,0.00024109,2]
[329375910,1718292640640,-2669.88,0.00024109,2]
[329375911,1718292640652,-500.0,0.00024109,2]
[329375912,1718292640676,-500.0,0.00024109,2]
[329375913,1718292640693,-500.0,0.00024109,2]
[329375914,1718292640707,-500.0,0.00024109,2]
[329375915,1718292640722,-500.0,0.00024109,2]
[329375916,1718292640762,-500.0,0.00024109,2]
[329375917,1718292640780,-626.81759712,0.00024109,2]
[329375918,1718292640798,-857.41,0.00024109,2]
[329375919,1718292640842,-500.0,0.00024109,2]
[329375920,1718292640866,-1143.43,0.00024109,2]
[329375921,1718292640899,-500.0,0.00024109,2]
[329375922,1718292640933,-1621.77,0.00024109,2]
[329375923,1718292640946,-674.54,0.00024109,2]
[329375924,1718292640971,-500.0,0.00024109,2]
[329375925,1718292641040,-1174.3,0.00024109,2]
[329375926,1718292641072,-500.0,0.00024109,2]
[329375927,1718292641084,-500.0,0.00024109,2]
[329375928,1718292641098,-500.0,0.00024109,2]
[329375929,1718292641126,-500.0,0.00024109,2]
[329375930,1718292641172,-500.0,0.00024109,2]
[329375931,1718292641231,-500.0,0.00024109,2]
[329375932,1718292641250,-1348.57,0.00024109,2]
[329375933,1718292641266,-500.0,0.00024109,2]
[329375934,1718292641299,-500.0,0.00024109,2]
[329375935,1718292641357,-500.0,0.00024109,2]
[329375936,1718292641387,-500.0,0.00024109,2]
[329375937,1718292641399,-502.75,0.00024109,2]
[329375938,1718292641410,-535.86,0.00024109,2]
[329375939,1718292641421,-1384.42,0.00024109,2]
[329375940,1718292641454,-500.0,0.00024109,2]
[329375941,1718292641469,-822.29,0.00024109,2]
[329375942,1718292641510,-500.0,0.00024109,2]
[329375943,1718292641554,-521.6,0.00024109,2]
[329375944,1718292641600,-500.0,0.00024109,2]
[329375945,1718292641629,-500.0,0.00024109,2]
[329375946,1718292641678,-500.0,0.00024109,2]
[329375947,1718292641720,-500.0,0.00024109,2]
[329375948,1718292641765,-500.0,0.00024109,2]
[329375949,1718292641810,-1073.92,0.00024109,2]
[329375950,1718292641839,-500.0,0.00024109,2]
[329375951,1718292641852,-2065.58,0.00024109,2]
[329375952,1718292641888,-500.0,0.00024109,2]
[329375953,1718292641930,-649.62,0.00024109,2]
[329375954,1718292641959,-550.84,0.00024109,2]
[329375955,1718292641985,-500.0,0.00024109,2]
[329375956,1718292642012,-500.0,0.00024109,2]
[329375957,1718292642023,-500.0,0.00024109,2]
[329375958,1718292642039,-928.65,0.00024109,2]
[329375959,1718292642077,-502.28,0.00024109,2]
[329375960,1718292642089,-691.98,0.00024109,2]
[329375961,1718292642101,-651.06,0.00024109,2]
[329375962,1718292642132,-500.0,0.00024109,2]
[329375963,1718292642147,-516.01,0.00024109,2]
[329375964,1718292642159,-7.00945407,0.00024109,2]
[329375965,1718292642745,-318.37,0.00020422,2]
[329375966,1718292642766,-492.99054593,0.00024109,2]
[329375967,1718292642780,-500.0,0.00024109,2]
[329375968,1718292642812,-1917.61,0.00024109,2]
[329375969,1718292642828,-15.58387362,0.00024109,2]
[329375970,1718292642841,-572.18612638,0.00024109,2]
[329375971,1718292642854,-184.89228411,0.00024109,2]
[329375972,1718292642874,-315.10771589,0.00024109,2]
[329375973,1718292642887,-224.58248519,0.00024109,2]
[329375974,1718292642902,-349.70936002,0.00024109,2]
[329375975,1718292642926,-280.15739459,0.00024109,2]
[329375976,1718292642942,-318.7007602,0.00024109,2]
[329375977,1718292642955,-500.0,0.00024109,2]
[329375978,1718292642974,-500.0,0.00024109,2]
[329375979,1718292642989,-500.0,0.00024109,2]
[329375980,1718292643002,-500.0,0.00024109,2]
[329375981,1718292643018,-122.40876573,0.00024109,2]
[329375982,1718292643043,-377.59123427,0.00024109,2]
[329375983,1718292643088,-500.0,0.00024109,2]
[329375984,1718292643120,-576.35058149,0.00024109,2]
[329375985,1718292643148,-812.04941851,0.00024109,2]
[329375986,1718292643159,-623.75458749,0.00024109,2]
[329375987,1718292643172,-500.0,0.00024109,2]
[329375988,1718292643184,-500.0,0.00024109,2]
[329375989,1718292643202,-719.63,0.00024109,2]
[329375990,1718292643214,-500.0,0.00024109,2]
[329375991,1718292643225,-180.0,0.0002423,2]
[329375992,1718292643276,-7500.0,0.00024282,2]
[329375993,1718292643300,-500.0,0.00024382,2]
[329375994,1718292643320,-500.0,0.00024382,2]
[329375995,1718292643367,-500.0,0.00024382,2]
[329375996,1718292643393,-500.0,0.00024382,2]
[329375997,1718292643418,-500.0,0.00024382,2]
[329375998,1718292643444,-500.0,0.00024382,2]
[329375999,1718292643461,-500.0,0.00024382,2]
[329376000,1718292643485,-546.77,0.00024382,2]
[329376001,1718292643511,-487.86480524,0.00024382,2]
[329376002,1718292643602,-500.0,0.00024382,2]
[329376003,1718292643619,-500.0,0.00024382,2]
[329376004,1718292643636,-500.0,0.00024382,2]
[329376005,1718292643675,-500.0,0.00024382,2]
[329376006,1718292643737,-500.0,0.00024382,2]
[329376007,1718292643750,-379.61,0.00024382,2]
[329376008,1718292643766,-500.0,0.00024382,2]
[329376009,1718292643816,-500.0,0.00024382,2]
[329376010,1718292643852,-500.0,0.00024382,2]
[329376011,1718292643886,-500.0,0.00024382,2]
[329376012,1718292643909,-598.99,0.00024382,2]
[329376013,1718292643931,-522.4,0.00024382,2]
[329376014,1718292643943,-500.0,0.00024382,2]
[329376015,1718292643963,-500.0,0.00024382,2]
[329376016,1718292643974,-500.0,0.00024382,2]
[329376017,1718292643985,-500.0,0.00024382,2]
[329376018,1718292644046,-500.0,0.00024382,2]
[329376019,1718292644087,-500.0,0.00024382,2]
[329376020,1718292644184,-500.0,0.00024382,2]
[329376021,1718292644197,-500.0,0.00024382,2]
[329376022,1718292644216,-500.0,0.00024382,2]
[329376023,1718292644245,-229.01,0.00024382,2]
[329376024,1718292644271,-500.0,0.00024382,2]
[329376025,1718292644293,-500.0,0.00024382,2]
[329376026,1718292644304,-500.0,0.00024382,2]
[329376028,1718292644316,-500.0,0.00024382,2]
[329376030,1718292644333,-500.0,0.00024382,2]
[329376031,1718292644346,-500.0,0.00024382,2]
[329376033,1718292644359,-500.0,0.00024382,2]
[329376035,1718292644370,-500.0,0.00024382,2]
[329376037,1718292644404,-500.0,0.00024382,2]
[329376038,1718292644421,-500.0,0.00024382,2]
[329376039,1718292644469,-500.0,0.00024382,2]
[329376040,1718292644496,-624.79,0.00024382,2]
[329376041,1718292644516,-500.0,0.00024382,2]
[329376042,1718292644527,-500.0,0.00024382,2]
[329376043,1718292644552,-500.0,0.00024382,2]
[329376044,1718292644602,-512.32,0.00024382,2]
[329376045,1718292644656,-500.0,0.00024382,2]
[329376046,1718292644683,-500.0,0.00024382,2]
[329376047,1718292644718,-500.0,0.00024382,2]
[329376048,1718292644733,-500.0,0.00024382,2]
[329376049,1718292644751,-500.0,0.00024382,2]
[329376050,1718292644765,-500.0,0.00024382,2]
[329376051,1718292644812,-500.0,0.00024382,2]
[329376052,1718292644856,-500.0,0.00024382,2]
[329376053,1718292644869,-154.15,0.00024382,2]
[329376054,1718292644891,-500.0,0.00024382,2]
[329376055,1718292644906,-500.0,0.00024382,2]
[329376056,1718292644932,-500.0,0.00024382,2]
[329376057,1718292644951,-533.11804707,0.00024382,2]
[329376058,1718292644995,-500.0,0.00024382,2]
[329376059,1718292645026,-518.95490245,0.00024382,2]
[329376060,1718292645073,-500.0,0.00024382,2]
[329376061,1718292645086,-500.0,0.00024382,2]
[329376062,1718292645114,-529.08481804,0.00024382,2]
[329376063,1718292645137,-500.0,0.00024382,2]
[329376064,1718292645156,-360.16019076,0.00024382,2]
[329376065,1718292645207,-724.51,0.00024382,2]
[329376066,1718292645228,-500.0,0.00024382,2]
[329376067,1718292645243,-500.0,0.00024382,2]
[329376068,1718292645258,-500.0,0.00024382,2]
[329376069,1718292645271,-500.0,0.00024382,2]
[329376070,1718292645289,-500.0,0.00024382,2]
[329376071,1718292645310,-500.0,0.00024382,2]
[329376072,1718292645321,-500.0,0.00024382,2]
[329376073,1718292645333,-500.0,0.00024382,2]
[329376074,1718292645363,-553.13,0.00024382,2]
[329376075,1718292645385,-500.0,0.00024382,2]
[329376076,1718292645409,-500.0,0.00024382,2]
[329376077,1718292645421,-500.0,0.00024382,2]
[329376078,1718292645449,-500.0,0.00024382,2]
[329376079,1718292645470,-500.0,0.00024382,2]
[329376080,1718292645495,-500.0,0.00024382,2]
[329376081,1718292645522,-554.66,0.00024382,2]
[329376082,1718292645544,-500.0,0.00024382,2]
[329376083,1718292645564,-500.0,0.00024382,2]
[329376084,1718292645578,-500.0,0.00024382,2]
[329376085,1718292645589,-500.0,0.00024382,2]
[329376086,1718292645606,-500.0,0.00024382,2]
[329376087,1718292645619,-500.0,0.00024382,2]
[329376088,1718292645648,-517.87,0.00024382,2]
[329376089,1718292645662,-500.0,0.00024382,2]
[329376090,1718292645692,-514.8,0.00024382,2]
[329376091,1718292645709,-500.0,0.00024382,2]
[329376092,1718292645728,-639.29,0.00024382,2]
[329376093,1718292645740,-500.0,0.00024382,2]
[329376094,1718292645759,-500.0,0.00024382,2]
[329376095,1718292645780,-500.0,0.00024382,2]
[329376096,1718292645814,-500.0,0.00024382,2]
[329376097,1718292645843,-500.0,0.00024382,2]
[329376098,1718292645866,-500.0,0.00024382,2]
[329376099,1718292645891,-500.0,0.00024382,2]
[329376100,1718292645907,-500.0,0.00024382,2]
[329376101,1718292645944,-665.95,0.00024382,2]
[329376102,1718292645955,-500.0,0.00024382,2]
[329376103,1718292645966,-500.0,0.00024382,2]
[329376104,1718292645978,-500.0,0.00024382,2]
[329376105,1718292645993,-500.0,0.00024382,2]
[329376106,1718292646020,-534.09,0.00024382,2]